bitfinex/quotes_ETHUSD_20241212
["timestamp","ask_amount","ask_price","bid_price","bid_amount"]
[1734000820598,3.91730208,3910.2,3910.1,0.625]
[1734000823786,3.91733054,3910.2,3910.1,0.625]
[1734000824182,4.79894853,3910.2,3910.1,0.625]
[1734000824581,3.91733054,3910.2,3910.1,0.625]
[1734000824788,5.00565553,3910.2,3910.1,0.625]
[1734000825223,5.8875489,3910.2,3910.1,0.625]
[1734000825507,7.21038934,3910.2,3910.1,0.625]
[1734000825712,8.27760164,3910.2,3910.1,0.625]
[1734000826417,5.8875489,3910.2,3910.1,0.625]
[1734000826718,5.88741537,3910.2,3910.1,0.625]
[1734000827008,5.8874155,3910.2,3910.1,0.625]
[1734000827169,7.21005581,3910.2,3910.1,0.625]
[1734000827371,7.21006531,3910.2,3910.1,0.625]
[1734000827607,8.35719766,3910.2,3910.1,0.625]
[1734000827978,8.62203491,3910.2,3910.1,0.625]
[1734000828583,7.47490194,3910.2,3910.1,0.625]
[1734000828882,7.47490194,3910.2,3910.1,0.61279214]
[1734000829585,9.07687245,3910.2,3910.1,0.61279214]
[1734000829784,2.55792,3909.5,3908.3,2.99329214]
[1734000830029,3.18785005,3909.4,3908.4,0.29932921]
[1734000830204,0.55,3909.2,3908.4,0.29932921]
[1734000830589,0.55,3909.0,3908.4,0.29932921]
[1734000830794,0.62992005,3909.0,3908.4,0.29932921]
[1734000830995,0.62992173,3909.3,3908.4,0.29932921]
[1734000831287,0.55,3909.1,3908.4,0.29932921]
[1734000831493,0.55,3909.1,3908.3,2.99329214]
[1734000831494,0.55,3909.1,3908.5,0.32926214]
[1734000831781,0.62992182,3909.3,3908.5,0.32926214]
[1734000831986,0.55,3909.1,3908.5,0.32926214]
[1734000832211,0.62992182,3909.1,3908.5,0.32926214]
[1734000832385,0.55,3909.2,3908.5,0.32926214]
[1734000832587,0.55,3909.0,3908.5,0.32926214]
[1734000832783,0.55,3909.0,3908.6,1.11674843]
[1734000833028,9.62513216,3911.5,3909.1,2.55813]
[1734000833029,0.55,3909.2,3909.1,2.55813]
[1734000833182,2.06281083,3910.2,3909.2,0.7845]
[1734000833183,0.07991081,3910.0,3909.2,0.7845]
[1734000833536,0.07991081,3909.9,3909.2,0.7845]
[1734000833735,0.07991081,3909.8,3909.2,0.7845]
[1734000833888,0.07991081,3910.1,3909.2,0.7845]
[1734000834085,0.07991081,3910.0,3909.2,0.7845]
[1734000834335,0.07991081,3909.9,3909.2,0.7845]
[1734000834499,0.07991081,3909.8,3909.3,0.3598409]
[1734000834815,1.87747358,3910.5,3909.3,0.3598409]
[1734000834816,2.63720081,3910.4,3909.3,2.55797]
[1734000835024,2.63727081,3910.3,3909.3,2.55797]
[1734000835240,0.07991081,3910.2,3909.3,2.55797]
[1734000835442,0.07991081,3910.1,3909.3,2.55797]
[1734000835748,0.8095,3910.5,3909.5,2.55785]
[1734000835749,0.07991081,3910.0,3909.5,2.55785]
[1734000835959,0.07991081,3910.4,3909.6,0.7585]
[1734000836253,0.07991081,3910.3,3909.6,0.7585]
[1734000836402,0.07991081,3910.2,3909.6,0.7585]
[1734000836600,0.07991081,3910.1,3909.6,0.7585]
[1734000836796,0.8245,3910.8,3909.6,1.15144764]
[1734000837003,0.55,3910.2,3909.6,0.7585]
[1734000837256,0.55,3910.0,3909.8,2.55767]
[1734000837421,0.07989789,3910.7,3909.9,0.7682]
[1734000837599,0.62989789,3910.6,3909.9,0.7682]
[1734000837804,0.55,3910.4,3909.9,3.32579]
[1734000838046,0.62989789,3910.4,3909.9,3.32579]
[1734000838255,0.55,3910.4,3909.9,0.7682]
[1734000838419,0.55,3910.7,3909.9,0.7682]
[1734000838599,0.55,3910.5,3909.9,0.7682]
[1734000838800,0.55,3910.3,3909.9,0.7682]
[1734000839435,0.55,3910.4,3909.9,0.7682]
[1734000839638,0.55,3910.3,3909.9,0.7682]
[1734000840144,0.55,3910.5,3909.9,0.7682]
[1734000840439,0.55,3910.3,3909.9,0.7682]
[1734000840839,0.55,3910.6,3909.9,0.7682]
[1734000841046,0.55,3910.4,3909.9,0.7682]
[1734000841243,0.55,3910.6,3909.9,0.7682]
[1734000841546,0.55,3910.4,3909.9,0.7682]
[1734000841708,0.55,3910.2,3909.9,0.7682]
[1734000841907,0.55,3910.0,3909.9,0.7682]
[1734000842110,0.62990142,3910.0,3909.9,0.7682]
[1734000842832,3.18744142,3910.0,3909.0,0.7807]
[1734000843041,0.55,3909.8,3909.0,0.7807]
[1734000843348,0.55,3909.6,3909.0,0.7807]
[1734000843507,0.55,3909.4,3909.0,0.7807]
[1734000843706,0.55,3909.6,3909.0,0.7807]
[1734000843903,0.55,3909.4,3909.0,0.7807]
[1734000846829,3.10826,3908.9,3908.4,0.7974]
[1734000847506,0.55,3908.7,3908.0,0.7826]
[1734000847727,0.55,3908.4,3908.0,0.7826]
[1734000848128,0.55,3908.6,3908.0,0.7826]
[1734000848327,0.55,3908.4,3908.0,0.7826]
[1734000848768,0.55,3908.5,3908.0,0.7826]
[1734000849763,0.55,3908.3,3908.0,0.7826]
[1734000850464,0.55,3908.4,3908.0,0.7826]
[1734000851030,0.55,3908.5,3908.0,0.7826]
[1734000852336,0.62993539,3908.5,3908.0,0.7826]
[1734000853033,0.8195,3909.0,3908.0,0.7826]
[1734000853034,0.55,3908.6,3908.0,3.34144]
[1734000853230,0.07993539,3908.9,3908.5,2.55851]
[1734000853470,0.07993539,3909.4,3908.8,2.8367294]
[1734000853631,0.07993539,3909.3,3908.9,0.8158]
[1734000853837,0.07993539,3909.8,3908.9,0.8158]
[1734000854058,0.07993539,3909.7,3908.9,0.8158]
[1734000854273,0.07990884,3909.6,3908.9,0.8158]
[1734000854634,0.07990884,3909.7,3908.9,0.8158]
[1734000854857,0.07990884,3909.6,3908.9,0.8158]
[1734000855072,0.07990884,3909.5,3908.9,0.8158]
[1734000855243,0.07990884,3909.4,3908.9,0.8158]
[1734000855444,0.07990884,3909.6,3908.9,0.8158]
[1734000855649,0.07990884,3909.5,3908.9,0.8158]
[1734000855871,0.62990884,3909.4,3908.9,0.8158]
[1734000856077,0.55,3909.5,3908.9,0.8158]
[1734000856292,0.62990884,3909.5,3908.9,0.8158]
[1734000856595,2.55761,3909.9,3908.9,0.8158]
[1734000856596,0.55,3909.7,3908.9,0.8158]
[1734000856751,0.55,3909.5,3908.9,0.8158]
[1734000856952,0.07990884,3909.5,3908.9,0.8158]
[1734000857163,0.55,3909.4,3908.9,3.37402]
[1734000857365,0.55,3909.4,3908.9,3.711422]
[1734000857762,0.55,3909.7,3908.9,3.711422]
[1734000857945,0.62990977,3909.7,3908.9,3.37402]
[1734000858145,0.55,3909.8,3908.9,3.37402]
[1734000858462,0.55,3909.6,3908.9,0.8158]
[1734000858673,0.62990977,3909.6,3908.9,0.8158]
[1734000858878,0.55,3909.9,3908.9,3.37404]
[1734000859041,0.55,3909.7,3909.3,2.55796]
[1734000859242,0.55,3909.7,3909.1,2.55812]
[1734000859472,0.55,3909.7,3909.2,2.55806]
[1734000859780,0.55,3909.7,3909.3,2.55798]
[1734000859944,0.55,3910.0,3909.2,0.8162]
[1734000860143,0.62990977,3910.0,3909.2,0.8162]
[1734000860344,0.62990977,3910.0,3909.3,2.558]
[1734000860345,0.55,3909.8,3909.3,2.558]
[1734000860641,0.55,3910.2,3909.4,2.55792]
[1734000860978,0.55,3910.2,3909.4,2.55793]
[1734000861147,0.55,3910.0,3909.4,2.55793]
[1734000861348,0.62990285,3910.0,3909.4,2.55793]
[1734000861544,0.55,3910.1,3909.5,2.55786]
[1734000861781,0.55,3909.9,3909.5,2.55786]
[1734000861988,0.55,3909.9,3909.5,2.55782]
[1734000862280,0.55,3910.6,3909.5,3.42947494]
[1734000862582,0.07990285,3910.7,3908.9,0.7662]
[1734000862583,0.55,3909.9,3908.9,0.7662]
[1734000862749,2.55787,3909.5,3908.9,0.7662]
[1734000862945,0.07990285,3909.4,3908.9,0.7662]
[1734000863145,0.7896,3909.7,3908.9,0.7662]
[1734000863146,0.07990285,3909.3,3908.9,0.7662]
[1734000863357,0.07990285,3909.6,3908.9,0.7662]
[1734000863545,0.07990285,3909.5,3908.9,0.7662]
[1734000863746,0.07990285,3909.4,3908.9,0.7662]
[1734000863950,2.90053428,3909.6,3908.9,0.7662]
[1734000864251,2.55796,3909.4,3908.9,0.7662]
[1734000864556,0.07991563,3909.5,3908.9,0.7662]
[1734000864756,0.07991563,3909.4,3908.9,0.7662]
[1734000864940,0.34272428,3909.6,3908.9,0.7662]
[1734000864941,0.07991563,3909.3,3908.9,0.7662]
[1734000865144,0.07991563,3909.5,3908.9,0.7662]
[1734000865344,2.90059428,3909.6,3908.9,0.7662]
[1734000865549,0.4489372,3909.5,3908.9,0.7662]
[1734000865871,0.07991777,3909.4,3908.9,0.7662]
[1734000866075,0.07991777,3909.4,3908.0,0.7734]
[1734000866277,2.5582,3909.0,3908.0,0.7734]
[1734000866451,0.25582,3908.9,3908.0,0.7734]
[1734000867192,0.3357469,3908.9,3908.0,0.7734]
[1734000867352,0.0799269,3908.8,3908.0,0.7734]
[1734000867552,0.07993094,3908.7,3908.0,0.7734]
[1734000867850,0.07993199,3908.9,3908.0,0.7734]
[1734000868076,0.42554519,3908.8,3908.0,0.7734]
[1734000868277,0.07993199,3908.7,3908.0,0.7734]
[1734000868447,0.07993199,3908.6,3908.0,0.7734]
[1734000868789,0.07993199,3908.7,3908.0,0.7734]
[1734000868960,0.07993199,3908.6,3908.0,0.7734]
[1734000869163,0.07993325,3908.7,3908.0,0.7734]
[1734000869359,0.07993322,3908.6,3908.0,0.7734]
[1734000869564,2.55839,3908.8,3908.0,0.7734]
[1734000869764,0.41757209,3908.7,3908.0,0.7734]
[1734000870086,0.337639,3908.7,3908.0,0.7734]
[1734000870255,0.0799317,3908.6,3908.0,0.7734]
[1734000870686,0.337639,3908.7,3908.0,0.7734]
[1734000870986,0.07993188,3908.6,3908.0,0.7734]
[1734000871211,0.337639,3908.7,3908.0,0.7734]
[1734000871376,0.07992935,3908.9,3908.0,0.7734]
[1734000871716,0.07992976,3908.8,3908.0,0.7734]
[1734000871871,0.07992976,3908.7,3908.0,0.7734]
[1734000872068,2.55834,3908.8,3908.0,0.7734]
[1734000872069,0.07992976,3908.6,3908.0,0.7734]
[1734000872404,0.07993608,3908.5,3908.0,0.7734]
[1734000872606,0.07993608,3908.4,3908.0,0.7734]
[1734000872813,2.55849,3908.6,3908.0,0.7734]
[1734000873010,0.255849,3908.5,3908.0,0.7734]
[1734000873175,0.33578541,3908.5,3908.0,0.7734]
[1734000873378,0.255849,3908.5,3908.0,0.7734]
[1734000873625,0.07993639,3908.4,3908.0,0.7734]
[1734000873933,2.55819,3909.1,3908.0,0.7734]
[1734000873934,1.06797358,3909.6,3908.3,2.8367294]
[1734000874077,0.0799186,3909.5,3909.0,3.6643294]
[1734000874278,0.0799186,3910.2,3909.1,0.79154541]
[1734000874511,0.0799186,3910.1,3909.3,2.55797]
[1734000874813,0.07989916,3910.3,3909.4,3.61250557]
[1734000875013,0.779,3911.1,3909.5,0.7865]
[1734000875212,2.55696,3910.9,3909.7,2.55769]
[1734000875435,0.079897,3910.8,3909.7,2.55769]
[1734000875638,2.55696,3910.9,3909.7,2.55769]
[1734000875639,0.079897,3910.7,3909.7,2.55769]
[1734000875811,0.079897,3910.6,3909.8,2.55762]
[1734000876014,0.37156569,3911.0,3909.6,0.7943]
[1734000876196,0.47753693,3910.9,3910.0,2.55748]
[1734000876541,0.07989192,3910.8,3910.1,0.7943]
[1734000876723,2.63665192,3911.2,3910.1,3.35176]
[1734000876923,0.07989192,3911.1,3910.1,3.35176]
[1734000877123,0.07989192,3911.0,3910.2,2.5574]
[1734000877324,0.07989192,3910.9,3910.1,0.7943]
[1734000877528,2.55682,3911.1,3910.1,0.7943]
[1734000877713,0.07989192,3911.0,3910.1,0.7943]
[1734000877914,0.07989192,3910.9,3910.1,3.35175]
[1734000878114,2.63665192,3911.2,3910.1,3.35175]
[1734000878318,0.07989192,3911.1,3910.1,3.35175]
[1734000878543,0.07989192,3911.0,3910.1,3.35175]
[1734000878836,2.55676,3911.2,3910.1,3.35175]
[1734000878837,0.07989192,3911.1,3910.1,3.35175]
[1734000879036,0.07989192,3911.0,3910.1,3.35175]
[1734000879245,0.07989192,3911.1,3910.1,3.35175]
[1734000879430,0.07988766,3911.1,3910.2,2.55738]
[1734000879745,0.07988766,3911.1,3910.4,2.55725]
[1734000879946,0.07988766,3911.4,3910.5,2.58276099]
[1734000880298,0.55,3911.5,3910.5,0.28384709]
[1734000880563,1.02627297,3911.8,3910.8,2.55701]
[1734000880564,0.07988766,3911.7,3910.8,2.55701]
[1734000880710,0.83948766,3911.8,3910.8,2.55701]
[1734000880907,3.39585766,3911.8,3910.6,3.35654]
[1734000881149,0.07988766,3911.7,3910.6,3.35654]
[1734000881354,0.33958577,3911.7,3910.8,2.55701]
[1734000881529,0.7596,3911.8,3910.8,2.55701]
[1734000881704,0.83947221,3911.8,3910.8,2.55701]
[1734000882224,0.55,3911.7,3910.8,2.55701]
[1734000882608,0.55,3911.7,3910.6,0.7994]
[1734000882609,0.55,3911.7,3910.6,3.35654]
[1734000882819,0.55,3911.7,3910.7,2.55707]
[1734000883031,0.7596,3911.8,3910.9,2.55694]
[1734000883210,0.62986854,3912.0,3910.9,2.55694]
[1734000883411,0.55,3912.0,3910.9,2.55694]
[1734000883610,0.98836978,3912.0,3910.9,2.55694]
[1734000883876,0.98836978,3912.0,3911.0,2.55685]
[1734000884012,0.55,3912.0,3911.0,2.55685]
[1734000884373,0.55,3912.0,3910.7,0.36147461]
[1734000884665,2.55636,3911.9,3910.7,2.55706]
[1734000884963,0.55,3912.0,3910.8,2.55701]
[1734000885129,0.62986976,3912.0,3910.8,2.55701]
[1734000885642,0.55,3912.0,3910.8,2.55701]
[1734000886047,0.55,3912.0,3910.6,0.7994]
[1734000886048,2.55632,3911.9,3910.6,0.7994]
[1734000886225,3.25031578,3911.9,3910.7,2.55708]
[1734000887450,3.25031578,3911.9,3910.6,1.21087296]
[1734000887451,2.55652,3911.6,3910.6,1.21087296]
[1734000887670,2.55652,3911.6,3910.6,0.7994]
[1734000887878,0.8095,3911.5,3910.6,0.7994]
[1734000888950,3.10637,3911.8,3910.6,0.7994]
[1734000888951,0.55,3911.8,3910.6,0.7994]
[1734000889108,0.55,3911.8,3910.7,2.55705]
[1734000889312,1.31696782,3912.2,3910.6,0.7994]
[1734000889537,0.8143,3912.2,3911.5,0.7588]
[1734000889760,0.8143,3912.6,3911.6,2.55644]
[1734000889913,1.1592888,3912.6,3911.6,2.55644]
[1734000890113,1.1592888,3912.6,3911.5,0.7588]
[1734000890746,0.52309933,3912.4,3911.6,2.55648]
[1734000890919,1.1592888,3912.6,3911.6,2.55648]
[1734000891347,0.8143,3912.6,3911.8,2.55636]
[1734000891911,0.8143,3912.6,3911.6,5.3932094]
[1734000892554,0.8143,3912.6,3911.6,2.8367294]
[1734000892762,0.8143,3912.6,3911.7,2.55641]
[1734000894659,0.8143,3912.6,3911.6,2.8367294]
[1734000894952,0.8143,3912.6,3911.8,2.55635]
[1734000896455,0.8143,3912.6,3911.6,3.19628234]
[1734000896663,0.8143,3912.6,3911.7,2.55643]
[1734000898159,0.8143,3912.6,3911.6,3.19628234]
[1734000898521,0.8143,3912.6,3911.8,2.55631]
[1734000898873,0.7997,3913.0,3912.1,2.55611]
[1734000899872,0.7997,3913.0,3912.2,2.55609]
[1734000900232,0.7997,3913.0,3911.9,0.57525923]
[1734000900435,2.55511,3913.8,3912.6,2.55579]
[1734000900436,0.55,3913.6,3912.6,2.55579]
[1734000900635,2.63498375,3913.7,3912.6,2.58134577]
[1734000900840,0.34545838,3913.6,3912.6,2.58134577]
[1734000901133,0.34545838,3913.6,3912.4,2.8367294]
[1734000901317,2.55526,3913.5,3912.4,5.3926894]
[1734000901520,2.55539,3913.3,3912.3,3.0]
[1734000901761,2.55539,3913.3,3912.4,3.0]
[1734000902130,3.37472,3913.8,3912.4,3.0]
[1734000902448,0.55,3913.4,3912.1,4.3346634]
[1734000902657,0.62983938,3913.4,3912.4,2.55596]
[1734000902963,0.55,3913.6,3912.4,2.55596]
[1734000903169,0.55,3913.4,3912.4,2.55596]
[1734000903327,0.62983687,3913.4,3912.5,2.58141577]
[1734000903666,0.07983687,3913.3,3912.5,2.58141577]
[1734000903964,0.07983687,3913.3,3912.5,0.02555577]
[1734000904166,0.807,3914.1,3912.6,1.23097851]
[1734000904365,0.07983124,3914.0,3912.9,2.55558]
[1734000904676,0.07983124,3913.9,3912.9,2.55558]
[1734000904975,0.07983124,3913.8,3913.0,0.11569535]
[1734000905141,0.07983124,3913.8,3912.9,2.55563]
[1734000905142,0.07983124,3913.7,3912.9,2.55563]
[1734000905343,0.07983124,3913.6,3912.9,2.55563]
[1734000905544,2.891146,3914.0,3912.9,2.55563]
[1734000905876,0.44964322,3913.9,3912.9,2.55563]
[1734000906057,0.07982862,3913.8,3912.9,2.55563]
[1734000906368,0.07982862,3913.7,3912.9,2.55563]
[1734000906523,0.07982862,3913.6,3912.9,2.55563]
[1734000906861,0.07982862,3913.5,3913.0,0.11564748]
[1734000907032,0.07982862,3913.8,3912.9,2.55563]
[1734000907235,0.07982862,3913.7,3913.0,0.11563352]
[1734000907532,0.07982862,3913.6,3912.9,2.55563]
[1734000907727,0.07982862,3913.5,3913.0,0.11563209]
[1734000907963,0.3698146,3913.9,3912.9,2.55563]
[1734000908277,2.8211692,3914.4,3913.0,0.11561911]
[1734000908278,2.55541,3913.3,3913.0,0.11561911]
[1734000908575,3.38841262,3913.2,3912.2,1.28631657]
[1734000908862,0.07983262,3913.1,3912.3,0.11570534]
[1734000909183,0.07983262,3913.0,3912.4,0.11570534]
[1734000909462,0.7531,3913.2,3912.5,0.11570534]
[1734000909625,0.07984027,3913.1,3912.3,3.0]
[1734000909825,0.15968054,3913.1,3912.3,3.0]
[1734000910071,0.07984027,3913.0,3912.4,0.11573918]
[1734000910368,0.07984027,3912.9,3912.4,0.11573918]
[1734000910555,0.07984027,3913.1,3912.5,0.11573918]
[1734000910862,0.07983857,3913.0,3912.5,0.11573918]
[1734000911082,0.07983994,3912.9,3912.5,0.11573918]
[1734000911240,0.07983994,3912.9,3912.3,2.55599]
[1734000911241,0.07984027,3913.1,3912.6,0.11573918]
[1734000911431,0.07983884,3913.0,3912.3,2.55599]
[1734000911631,0.07984027,3913.1,3912.4,0.11579441]
[1734000911833,0.07983876,3913.0,3912.5,0.11579441]
[1734000912033,0.07983876,3912.9,3912.6,0.11579441]
[1734000912268,0.07984027,3913.1,3912.3,2.55599]
[1734000912565,0.07983996,3913.0,3912.4,0.11581442]
[1734000912766,0.07983996,3912.9,3912.5,0.11581442]
[1734000912933,0.07984027,3913.1,3912.6,0.1158152]
[1734000913132,0.07984046,3913.0,3912.3,2.55599]
[1734000913335,0.07984046,3912.9,3912.4,0.11581571]
[1734000913531,0.07984027,3913.1,3912.5,0.11581571]
[1734000913800,0.07983998,3913.0,3912.5,0.14137194]
[1734000913981,0.07984027,3913.1,3912.6,0.11581571]
[1734000914283,0.07983655,3913.0,3912.6,0.11581571]
[1734000914467,0.07984027,3913.1,3912.6,0.11581571]
[1734000914628,0.07983825,3913.0,3912.7,0.11581571]
[1734000914832,0.07984027,3913.1,3912.2,0.7732]
[1734000915137,0.07983764,3913.0,3912.4,2.55597]
[1734000915338,0.07984027,3913.1,3912.5,0.30117528]
[1734000915538,0.07983799,3913.0,3912.6,0.11583111]
[1734000915738,0.07983799,3912.9,3912.7,0.11583111]
[1734000916038,0.07984027,3913.1,3912.4,2.55597]
[1734000916268,0.07983838,3913.0,3912.5,0.11584611]
[1734000916534,0.07983838,3912.9,3912.6,0.11584611]
[1734000916760,0.07984027,3913.1,3912.7,0.11584611]
[1734000917070,0.07983786,3913.0,3912.8,0.11584611]
[1734000917271,0.07984027,3913.1,3912.4,2.55597]
[1734000917272,0.07983786,3912.9,3912.4,2.55597]
[1734000917481,0.07984027,3913.1,3912.5,0.70668932]
[1734000917652,0.07983517,3913.0,3912.6,0.30139583]
[1734000917834,0.07984027,3913.1,3912.5,0.40529349]
[1734000917835,0.07983517,3912.9,3912.7,0.11591593]
[1734000918175,0.07984027,3913.1,3912.8,0.11591593]
[1734000918380,0.07983615,3913.0,3912.9,0.11591593]
[1734000919805,0.33883962,3913.0,3912.9,0.11605335]
[1734000920083,2.97426054,3913.0,3912.9,0.11605335]
[1734000920561,0.41868054,3913.0,3912.3,0.11605335]
[1734000920763,3.3086,3913.2,3912.9,0.11605335]
[1734000920940,0.07984129,3913.1,3912.1,5.55615]
[1734000921137,3.3086,3913.2,3911.8,0.12577563]
[1734000921138,3.36698,3912.7,3912.2,0.30187841]
[1734000921465,3.36698,3912.7,3912.3,0.30187841]
[1734000921466,0.47153929,3912.6,3912.3,0.30187841]
[1734000921643,0.47153929,3912.6,3911.7,3.8295]
[1734000921644,0.07984129,3912.5,3912.4,0.11610153]
[1734000921975,0.07984129,3912.5,3912.4,3.63569328]
[1734000922177,0.8295,3913.0,3912.5,2.55587]
[1734000922382,2.5553,3913.5,3912.5,2.58142587]
[1734000922383,1.3795,3913.4,3912.5,2.58142587]
[1734000922674,0.07983793,3913.3,3912.6,0.11611978]
[1734000922839,0.07983793,3913.2,3912.7,0.11611978]
[1734000923041,0.07983793,3913.1,3912.8,0.30192587]
[1734000923240,1.3795,3913.4,3912.9,0.11611978]
[1734000923241,0.07983793,3913.0,3912.9,0.11611978]
[1734000925341,0.07983793,3913.0,3912.9,0.11624043]
[1734000926282,0.07983793,3913.0,3912.9,1.12139281]
[1734000926483,0.07983793,3913.0,3912.9,1.48910309]
[1734000926646,0.07983793,3913.0,3912.9,4.04474309]
[1734000927866,0.751,3913.9,3913.0,2.55558]
[1734000928172,0.751,3913.9,3913.1,0.30219281]
[1734000928173,0.0798276,3913.8,3913.1,0.30219281]
[1734000928489,0.0798276,3913.7,3912.9,1.18691028]
[1734000928643,3.30603,3913.9,3912.9,1.18691028]
[1734000928644,3.30603,3913.9,3913.2,0.30216656]
[1734000928847,0.07982893,3913.8,3912.9,0.8192]
[1734000929048,0.07982917,3913.7,3913.3,0.30216788]
[1734000929287,0.07982917,3913.6,3913.4,0.11621286]
[1734000929599,0.07982917,3913.5,3912.9,0.8192]
[1734000929749,0.07982917,3913.4,3913.0,0.30219919]
[1734000929952,0.07982917,3913.3,3913.1,0.30219919]
[1734000930263,0.07982917,3913.2,3912.9,3.37484]
[1734000930460,0.07982917,3913.1,3913.0,0.30219076]
[1734000931755,0.07982917,3913.1,3913.0,0.30219297]
[1734000932922,0.751,3913.9,3913.0,0.30219297]
[1734000932923,2.55529,3913.5,3913.0,0.30219297]
[1734000933207,0.7874,3913.2,3913.1,0.11622664]
[1734000933351,0.8672315,3913.2,3913.1,0.11622664]
[1734000934249,0.0798315,3913.2,3913.1,0.11622664]
[1734000935549,0.07982946,3913.2,3913.1,0.30220134]
[1734000936308,0.07982946,3913.2,3913.1,0.30219723]
[1734000936600,0.07983168,3913.2,3913.1,0.11622664]
[1734000937989,0.07983168,3913.2,3913.1,0.1162652]
[1734000938286,0.07983168,3913.2,3912.6,3.5996294]
[1734000938287,0.7939,3913.8,3912.9,2.55562]
[1734000938588,0.7939,3913.8,3912.6,3.5996294]
[1734000938589,0.07982936,3913.7,3913.1,0.30229739]
[1734000938890,0.07982936,3913.7,3913.2,0.11626267]
[1734000939056,0.07982936,3913.6,3913.3,0.11626267]
[1734000939385,0.07982936,3913.5,3913.4,0.11626267]
[1734000940452,0.07982936,3913.5,3912.7,3.0]
[1734000940656,0.07982936,3913.4,3912.8,0.30245101]
[1734000940858,0.07982936,3913.3,3912.9,0.30245101]
[1734000941087,0.07982936,3913.2,3913.0,0.11632175]
[1734000941295,2.55514,3913.7,3913.1,0.11632175]
[1734000941593,0.07983133,3913.6,3913.2,0.11632175]
[1734000941754,0.07983133,3913.5,3913.3,0.11632175]
[1734000941957,0.7939,3913.8,3913.4,0.11632175]
[1734000942272,2.55525,3913.5,3912.6,0.7629]
[1734000942617,0.07983016,3913.4,3912.7,0.30254378]
[1734000942815,0.07983016,3913.3,3912.8,0.30254378]
[1734000943025,0.89713016,3913.2,3912.9,0.30254378]
[1734000943322,0.89713016,3913.2,3912.6,0.7629]
[1734000943323,0.07983016,3913.1,3913.0,0.11635743]
[1734000947308,1.06981157,3913.5,3912.6,0.7629]
[1734000947609,0.07983488,3913.1,3912.7,0.11634411]
[1734000947760,0.07983271,3913.4,3913.0,0.18616584]
[1734000948070,4.34622852,3913.7,3913.2,0.8184]
[1734000948071,0.07983329,3913.3,3913.2,0.8184]
[1734000948458,0.07983329,3913.3,3913.0,0.18616584]
[1734000949361,0.07983295,3913.2,3913.1,0.11642362]
[1734000951301,0.07983262,3913.2,3913.1,0.11642362]
[1734000951807,0.07983262,3913.2,3913.1,0.30275804]
[1734000952572,1.83551157,3913.8,3913.1,0.30275804]
[1734000952763,1.83551157,3913.8,3913.2,0.30275804]
[1734000952764,0.96552874,3913.7,3913.2,0.30275804]
[1734000952965,0.07982599,3913.6,3913.3,0.30275804]
[1734000953296,0.07982599,3913.5,3913.4,1.0767017]
[1734000953809,0.07982599,3913.5,3913.4,3.6320217]
[1734000953957,0.7571,3914.1,3913.4,3.6320217]
[1734000954161,0.96542217,3914.0,3913.5,1.6357412]
[1734000954461,0.0798189,3913.9,3913.6,0.3028017]
[1734000954657,0.0798189,3913.8,3913.7,0.3028017]
[1734000954861,2.39798774,3914.4,3913.7,1.6357412]
[1734000955063,0.07981416,3914.3,3913.8,0.3028017]
[1734000955264,0.07981416,3914.2,3913.9,0.30261513]
[1734000955488,2.41851736,3914.8,3914.0,0.30261513]
[1734000955489,1.88361157,3914.8,3914.0,0.30261513]
[1734000955683,0.96498658,3914.7,3914.1,0.30261513]
[1734000955975,0.07981023,3914.6,3914.2,0.30261513]
[1734000956171,0.07981023,3914.5,3914.3,0.11642362]
[1734000956372,0.07981023,3914.4,3914.0,0.8076]
[1734000956572,0.07981023,3914.3,3914.1,0.11623984]
[1734000956776,0.8138,3914.8,3914.2,0.11623984]
[1734000957008,0.07981,3914.7,3914.3,0.11623984]
[1734000957219,0.07981,3914.6,3914.0,0.8076]
[1734000957422,0.07981,3914.5,3914.1,0.30216067]
[1734000957592,0.8138,3914.8,3914.2,0.11624662]
[1734000957787,0.8138,3914.8,3914.3,0.11624662]
[1734000957994,0.07980576,3914.7,3914.0,0.8076]
[1734000958300,0.55,3914.7,3914.1,0.18593779]
[1734000958472,0.55,3914.7,3914.1,0.30213776]
[1734000958672,0.0798064,3914.6,3914.2,0.11619997]
[1734000958973,0.55,3914.7,3914.1,0.18593779]
[1734000958974,0.0798064,3914.5,3914.1,0.18593779]
[1734000959179,0.0798064,3914.4,3914.2,0.11612481]
[1734000959379,0.55,3914.7,3914.0,0.8076]
[1734000959691,0.07980898,3914.6,3914.1,0.11606251]
[1734000959891,0.55,3914.7,3914.2,0.11606251]
[1734000960094,0.07980577,3914.6,3914.3,0.11606251]
[1734000960313,0.55,3914.7,3914.0,0.8076]
[1734000960529,0.07980621,3914.6,3914.1,0.11604834]
[1734000960733,0.55,3914.7,3914.2,0.11604834]
[1734000961046,0.55,3914.4,3913.7,2.55512]
[1734000961248,0.55,3914.4,3913.8,0.30177294]
[1734000961542,0.55,3914.4,3913.9,0.11606096]
[1734000961748,0.55,3914.4,3914.0,0.11606096]
[1734000961893,0.55,3914.4,3913.5,5.55524]
[1734000962094,0.55,3914.4,3913.6,2.15269824]
[1734000962290,0.55,3914.4,3913.7,0.30179673]
[1734000962492,0.55,3914.4,3913.8,0.11607011]
[1734000962750,0.55,3914.4,3913.9,0.11607011]
[1734000962892,0.55,3914.4,3914.0,0.11607011]
[1734000963195,3.10467,3914.4,3913.7,1.15699166]
[1734000963393,0.55,3914.4,3913.8,0.11607437]
[1734000963600,0.55,3914.4,3913.5,2.55525]
[1734000963930,0.55,3914.4,3913.6,2.85557705]
[1734000964128,0.55,3914.4,3913.7,0.11609408]
[1734000964428,0.55,3914.4,3913.8,0.11609408]
[1734000964590,0.55,3914.4,3913.9,0.11609408]
[1734000964790,0.55,3914.4,3914.0,0.11609408]
[1734000964986,0.55,3914.4,3913.6,2.55518]
[1734000965228,0.55,3914.4,3913.7,0.97148357]
[1734000965545,0.55,3914.4,3913.8,0.11522058]
[1734000966645,0.55,3914.4,3913.9,0.11522058]
[1734000966896,0.55,3914.7,3913.9,0.812]
[1734000967046,3.88999882,3915.4,3914.3,2.55473]